[Event "*** Titled Tuesday 3|2 Blitz"]
[Site "Chess.com"]
[Date "2016.01.05"]
[Round "1"]
[White "Keranke"]
[Black "Cats4Sale"]
[Result "1-0"]
[WhiteElo "2606"]
[BlackElo "2239"]
[TimeControl "180+2"]
[EndTime "11:11:35 PST"]
[Termination "Keranke won by resignation"]

1. d4 {[%clk 0:03:00.8]} 1... Nf6 {[%clk 0:02:57.9]} 2. c4 {[%clk 0:02:56.2]}
2... e6 {[%clk 0:02:58.8]} 3. g3 {[%clk 0:02:57.2]} 3... Bb4+ {[%clk 0:02:52.8]}
4. Nd2 {[%clk 0:02:56.8]} 4... Nc6 {[%clk 0:02:35.4]} 5. Nf3 {[%clk 0:02:49.2]}
5... d6 {[%clk 0:02:32.9]} 6. Bg2 {[%clk 0:02:49.4]} 6... O-O {[%clk 0:02:30.6]}
7. O-O {[%clk 0:02:49.6]} 7... Bxd2 {[%clk 0:02:25.4]} 8. Qxd2 {[%clk
0:02:35.9]} 8... e5 {[%clk 0:02:18.5]} 9. dxe5 {[%clk 0:02:35.9]} 9... dxe5
{[%clk 0:02:12.8]} 10. Qc3 {[%clk 0:02:36.5]} 10... Qe7 {[%clk 0:02:08]} 11. b3
{[%clk 0:02:35.5]} 11... Bf5 {[%clk 0:01:23.6]} 12. Bb2 {[%clk 0:02:33]} 12...
Rfe8 {[%clk 0:01:23.7]} 13. e3 {[%clk 0:02:24.3]} 13... Ne4 {[%clk 0:01:14.8]}
14. Qc1 {[%clk 0:02:24.7]} 14... Nc5 {[%clk 0:01:02.2]} 15. Nh4 {[%clk
0:02:20.6]} 15... Be4 {[%clk 0:00:48.8]} 16. Bxe4 {[%clk 0:01:59.6]} 16... Nxe4
{[%clk 0:00:49.2]} 17. Qc2 {[%clk 0:02:00.7]} 17... Nf6 {[%clk 0:00:39.6]} 18.
a3 {[%clk 0:01:58.2]} 18... Qe6 {[%clk 0:00:40.2]} 19. b4 {[%clk 0:01:53.1]}
19... Qh3 {[%clk 0:00:36.3]} 20. f3 {[%clk 0:01:47.1]} 20... Rad8 {[%clk
0:00:22.1]} 21. Qe2 {[%clk 0:00:09.7]} 21... Qe6 {[%clk 0:00:23.6]} 22. Rad1
{[%clk 0:00:10.1]} 22... h6 {[%clk 0:00:18.9]} 23. Ng2 {[%clk 0:00:09.3]} 23...
Nd7 {[%clk 0:00:17.3]} 24. c5 {[%clk 0:00:08.5]} 24... Nf6 {[%clk 0:00:17.9]}
25. e4 {[%clk 0:00:09.9]} 25... Qb3 {[%clk 0:00:16.3]} 26. Ne3 {[%clk
0:00:09.6]} 26... Nd4 {[%clk 0:00:15.7]} 27. Bxd4 {[%clk 0:00:09.8]} 27... exd4
{[%clk 0:00:17.4]} 28. Nf5 {[%clk 0:00:11.4]} 28... d3 {[%clk 0:00:16.1]} 29.
Qe3 {[%clk 0:00:11]} 29... Qxa3 {[%clk 0:00:10.3]} 30. Rb1 {[%clk 0:00:10.1]}
30... Qa2 {[%clk 0:00:10]} 31. Rfd1 {[%clk 0:00:09.4]} 31... Qe6 {[%clk
0:00:05.5]} 32. Rxd3 {[%clk 0:00:08.1]} 32... Rxd3 {[%clk 0:00:04.6]} 33. Qxd3
{[%clk 0:00:10]} 33... g6 {[%clk 0:00:05.2]} 34. Ne3 {[%clk 0:00:09.9]} 34...
Qe7 {[%clk 0:00:04.3]} 35. Rd1 {[%clk 0:00:10.8]} 35... Kg7 {[%clk 0:00:04.9]}
36. Qd4 {[%clk 0:00:12.3]} 36... Kh7 {[%clk 0:00:05.4]} 37. Nd5 {[%clk
0:00:12.1]} 37... Nxd5 {[%clk 0:00:06.1]} 38. Qxd5 {[%clk 0:00:14]} 38... c6
{[%clk 0:00:05.6]} 39. Qd6 {[%clk 0:00:15.2]} 39... Kg7 {[%clk 0:00:05.4]} 40.
Qd4+ {[%clk 0:00:15.8]} 40... Kh7 {[%clk 0:00:05.6]} 41. Kg2 {[%clk 0:00:16]}
41... Qe6 {[%clk 0:00:06.4]} 42. h4 {[%clk 0:00:17]} 42... Qa2+ {[%clk
0:00:06.6]} 43. Rd2 {[%clk 0:00:18]} 43... Qe6 {[%clk 0:00:08.3]} 44. h5 {[%clk
0:00:19.3]} 44... gxh5 {[%clk 0:00:07.8]} 45. Rd1 {[%clk 0:00:19]} 45... h4
{[%clk 0:00:07.9]} 46. g4 {[%clk 0:00:19.7]} 46... Qa2+ {[%clk 0:00:05.3]} 47.
Kh3 {[%clk 0:00:20.1]} 47... Qe6 {[%clk 0:00:03]} 48. Kxh4 {[%clk 0:00:20.8]}
48... Qg6 {[%clk 0:00:03.2]} 49. Qd7 {[%clk 0:00:19.4]} 49... Rg8 {[%clk
0:00:03.2]} 50. Qf5 {[%clk 0:00:19.6]} 50... Qxf5 {[%clk 0:00:02.7]} 51. gxf5
{[%clk 0:00:20.8]} 51... b6 {[%clk 0:00:03.5]} 52. Rd7 {[%clk 0:00:21.7]} 52...
bxc5 {[%clk 0:00:04.2]} 53. bxc5 {[%clk 0:00:23.6]} 53... Ra8 {[%clk 0:00:05.3]}
54. Rxf7+ {[%clk 0:00:24.1]} 54... Kg8 {[%clk 0:00:06.8]} 55. Rc7 {[%clk
0:00:20]} 55... a5 {[%clk 0:00:08.1]} 56. Rxc6 {[%clk 0:00:21.6]} 56... a4
{[%clk 0:00:09.7]} 57. Rb6 {[%clk 0:00:23.2]} 57... a3 {[%clk 0:00:11.1]} 58.
Rb1 {[%clk 0:00:24.9]} 58... a2 {[%clk 0:00:12.6]} 59. Ra1 {[%clk 0:00:26.6]}
59... Kf7 {[%clk 0:00:13.1]} 60. e5 {[%clk 0:00:28.2]} 60... Ra5 {[%clk
0:00:11.9]} 61. f4 {[%clk 0:00:27.9]} 61... Ra4 {[%clk 0:00:10.5]} 62. Kg4
{[%clk 0:00:29.2]} 62... h5+ {[%clk 0:00:07.7]} 63. Kxh5 {[%clk 0:00:29.9]}
63... Rxf4 {[%clk 0:00:08.8]} 64. Kg5 {[%clk 0:00:31.1]} 64... Rf2 {[%clk
0:00:09.1]} 65. c6 {[%clk 0:00:31.9]} 65... Rg2+ {[%clk 0:00:07.7]} 66. Kf4
{[%clk 0:00:33.2]} 66... Rf2+ {[%clk 0:00:08.5]} 67. Ke4 {[%clk 0:00:34.1]}
67... Re2+ {[%clk 0:00:09]} 68. Kd5 {[%clk 0:00:35.7]} 68... Rd2+ {[%clk
0:00:09.1]} 69. Kc5 {[%clk 0:00:37.2]} 69... Rc2+ {[%clk 0:00:07.5]} 70. Kb6
{[%clk 0:00:38.5]} 70... Rb2+ {[%clk 0:00:08]} 71. Ka7 {[%clk 0:00:39.7]} 71...
Ke7 {[%clk 0:00:06.1]} 72. f6+ {[%clk 0:00:39.4]} 72... Kd8 {[%clk 0:00:03.1]}
73. e6 {[%clk 0:00:38.4]} 73... Kc7 {[%clk 0:00:03.7]} 74. f7 {[%clk 0:00:36.3]}
74... Kxc6 {[%clk 0:00:04.6]} 75. f8=Q {[%clk 0:00:36.6]} 1-0

[Event "*** Titled Tuesday 3|2 Blitz"]
[Site "Chess.com"]
[Date "2016.01.05"]
[Round "2"]
[White "northridgehawk"]
[Black "chorejason"]
[Result "0-1"]
[WhiteElo "1763"]
[BlackElo "1879"]
[TimeControl "180+2"]
[EndTime "11:16:22 PST"]
[Termination "chorejason won by resignation"]

1. e4 {[%clk 0:03:01.9]} 1... c5 {[%clk 0:03:00.2]} 2. Nf3 {[%clk 0:03:01.8]}
2... d6 {[%clk 0:03:01.6]} 3. d4 {[%clk 0:03:03.7]} 3... cxd4 {[%clk 0:03:03.1]}
4. Nxd4 {[%clk 0:03:04.3]} 4... Nf6 {[%clk 0:03:04.4]} 5. Nc3 {[%clk 0:03:05.9]}
5... g6 {[%clk 0:03:05.9]} 6. Be3 {[%clk 0:03:06.5]} 6... Bg7 {[%clk 0:03:07.3]}
7. f3 {[%clk 0:03:08.2]} 7... O-O {[%clk 0:03:08.6]} 8. Qd2 {[%clk 0:03:09.9]}
8... Nc6 {[%clk 0:03:10]} 9. g4 {[%clk 0:03:09.2]} 9... Be6 {[%clk 0:03:07.7]}
10. h4 {[%clk 0:03:09.8]} 10... Rc8 {[%clk 0:03:07]} 11. Nxe6 {[%clk 0:03:10.5]}
11... fxe6 {[%clk 0:03:07.7]} 12. O-O-O {[%clk 0:03:12.4]} 12... Ne5 {[%clk
0:03:08.1]} 13. h5 {[%clk 0:03:12.7]} 13... Nxf3 {[%clk 0:03:08.5]} 14. Qf2
{[%clk 0:03:12.9]} 14... Nxg4 {[%clk 0:03:06.7]} 15. Qe2 {[%clk 0:03:14]} 15...
Nxe3 {[%clk 0:03:07.4]} 16. Qxe3 {[%clk 0:03:15.9]} 16... Rxc3 {[%clk
0:02:56.7]} 17. bxc3 {[%clk 0:03:16.5]} 17... Qa5 {[%clk 0:02:57.6]} 18. Bc4
{[%clk 0:03:12.1]} 18... Qa3+ {[%clk 0:02:44.9]} 19. Kb1 {[%clk 0:03:12.3]}
19... Bxc3 {[%clk 0:02:46]} 20. Bxe6+ {[%clk 0:03:13.1]} 20... Kh8 {[%clk
0:02:43.3]} 21. Qxc3+ {[%clk 0:03:13.1]} 21... Qxc3 {[%clk 0:02:41.8]} 22. hxg6
{[%clk 0:03:15]} 22... h6 {[%clk 0:02:11.5]} 23. Rxh6+ {[%clk 0:03:07.3]} 23...
Kg7 {[%clk 0:02:12.5]} 24. Rdh1 {[%clk 0:03:06.2]} 24... Ng5 {[%clk 0:02:13.6]}
25. Bb3 {[%clk 0:03:04.4]} 25... a5 {[%clk 0:02:11.9]} 26. R6h5 {[%clk 0:03:02]}
26... Nxe4 {[%clk 0:02:03.3]} 27. Rh7+ {[%clk 0:03:01.6]} 27... Kxg6 {[%clk
0:02:04.7]} 28. Rxe7 {[%clk 0:03:02.4]} 28... Nd2+ {[%clk 0:02:03.5]} 29. Kc1
{[%clk 0:03:01.5]} 29... Nxb3+ {[%clk 0:02:02.2]} 30. axb3 {[%clk 0:02:59.8]}
30... Qa1+ {[%clk 0:02:03.4]} 0-1

[Event "*** Titled Tuesday 3|2 Blitz"]
[Site "Chess.com"]
[Date "2016.01.05"]
[Round "2"]
[White "aspired"]
[Black "Moltini"]
[Result "0-1"]
[WhiteElo "2357"]
[BlackElo "2183"]
[TimeControl "180+2"]
[EndTime "11:18:16 PST"]
[Termination "Moltini won by resignation"]

1. e4 {[%clk 0:03:01.9]} 1... c5 {[%clk 0:03:00.1]} 2. Nf3 {[%clk 0:03:02.4]}
2... d6 {[%clk 0:03:01.4]} 3. Bb5+ {[%clk 0:03:02.6]} 3... Bd7 {[%clk
0:03:01.5]} 4. c4 {[%clk 0:03:03.1]} 4... g6 {[%clk 0:03:01.7]} 5. Nc3 {[%clk
0:03:02.4]} 5... Bg7 {[%clk 0:03:02.8]} 6. d4 {[%clk 0:03:03.4]} 6... cxd4
{[%clk 0:03:03.1]} 7. Nxd4 {[%clk 0:03:04.4]} 7... Nf6 {[%clk 0:03:04.7]} 8. O-O
{[%clk 0:03:00.6]} 8... O-O {[%clk 0:03:04.7]} 9. h3 {[%clk 0:02:52.5]} 9... a6
{[%clk 0:03:05.8]} 10. Bxd7 {[%clk 0:02:52.8]} 10... Nbxd7 {[%clk 0:03:06.5]}
11. Be3 {[%clk 0:02:52.8]} 11... Rc8 {[%clk 0:03:07.5]} 12. Qb3 {[%clk
0:02:39.6]} 12... Nc5 {[%clk 0:03:04.9]} 13. Qc2 {[%clk 0:02:40.5]} 13... b5
{[%clk 0:02:54.1]} 14. cxb5 {[%clk 0:02:40.3]} 14... axb5 {[%clk 0:02:54]} 15.
Ndxb5 {[%clk 0:02:39]} 15... Ncxe4 {[%clk 0:02:51.7]} 16. Qd3 {[%clk 0:02:33.7]}
16... Nc5 {[%clk 0:02:46.8]} 17. Qe2 {[%clk 0:02:33.9]} 17... Qd7 {[%clk
0:02:47.6]} 18. Rac1 {[%clk 0:02:28]} 18... e5 {[%clk 0:02:42.8]} 19. b4 {[%clk
0:02:17.6]} 19... Ne6 {[%clk 0:02:39.4]} 20. a4 {[%clk 0:02:12.2]} 20... d5
{[%clk 0:02:40.3]} 21. Bd2 {[%clk 0:02:10.8]} 21... d4 {[%clk 0:02:41]} 22. Ne4
{[%clk 0:02:11.3]} 22... Qd5 {[%clk 0:02:21.2]} 23. f3 {[%clk 0:01:56.5]} 23...
Nh5 {[%clk 0:02:13.8]} 24. Ned6 {[%clk 0:01:46.3]} 24... Rxc1 {[%clk 0:02:13.4]}
25. Rxc1 {[%clk 0:01:46.7]} 25... Nhf4 {[%clk 0:02:14.5]} 26. Qc4 {[%clk
0:01:35]} 26... Qa8 {[%clk 0:01:58.8]} 27. a5 {[%clk 0:01:29.3]} 27... Ng5
{[%clk 0:01:59.6]} 28. Bxf4 {[%clk 0:01:25.5]} 28... exf4 {[%clk 0:02:00.6]} 29.
Qxd4 {[%clk 0:01:10.5]} 29... Bxd4+ {[%clk 0:02:00]} 0-1

[Event "*** Titled Tuesday 3|2 Blitz"]
[Site "Chess.com"]
[Date "2016.01.05"]
[Round "2"]
[White "AnimationDomination"]
[Black "ChessSkool"]
[Result "0-1"]
[WhiteElo "1724"]
[BlackElo "2140"]
[TimeControl "180+2"]
[EndTime "11:18:20 PST"]
[Termination "ChessSkool won by resignation"]

1. d4 {[%clk 0:03:01.9]} 1... d5 {[%clk 0:02:46.2]} 2. c4 {[%clk 0:03:02.5]}
2... dxc4 {[%clk 0:02:46.4]} 3. e3 {[%clk 0:02:47.1]} 3... e5 {[%clk 0:02:46.1]}
4. Bxc4 {[%clk 0:02:31.8]} 4... exd4 {[%clk 0:02:46.4]} 5. exd4 {[%clk
0:02:32.4]} 5... Bd6 {[%clk 0:02:46.6]} 6. Nf3 {[%clk 0:02:31.9]} 6... Nf6
{[%clk 0:02:46.9]} 7. O-O {[%clk 0:02:30.7]} 7... O-O {[%clk 0:02:47.4]} 8. Bg5
{[%clk 0:02:29.8]} 8... Nc6 {[%clk 0:02:45.3]} 9. Nc3 {[%clk 0:02:27.3]} 9... h6
{[%clk 0:02:45.6]} 10. Bh4 {[%clk 0:02:26.4]} 10... Bg4 {[%clk 0:02:45.5]} 11.
Be2 {[%clk 0:02:08.1]} 11... Bxf3 {[%clk 0:02:19]} 12. Bxf3 {[%clk 0:02:10]}
12... Nxd4 {[%clk 0:02:19.3]} 13. Nd5 {[%clk 0:01:48.3]} 13... Nxf3+ {[%clk
0:02:01.7]} 14. Qxf3 {[%clk 0:01:47.9]} 14... Bxh2+ {[%clk 0:02:01.8]} 15. Kxh2
{[%clk 0:01:41.1]} 15... Qxd5 {[%clk 0:02:02.4]} 16. Bxf6 {[%clk 0:01:25.4]}
16... Qxf3 {[%clk 0:02:01.7]} 17. gxf3 {[%clk 0:01:27]} 17... gxf6 {[%clk
0:02:02.6]} 18. Rad1 {[%clk 0:01:22.1]} 18... Rad8 {[%clk 0:02:02.4]} 19. Kg2
{[%clk 0:01:21.2]} 19... Rfe8 {[%clk 0:02:00.7]} 20. Kg3 {[%clk 0:01:17.6]}
20... c6 {[%clk 0:01:53.4]} 21. Kf4 {[%clk 0:01:11.6]} 21... Rxd1 {[%clk
0:01:52.7]} 22. Rxd1 {[%clk 0:01:07.4]} 22... Re2 {[%clk 0:01:53.9]} 23. Rd7
{[%clk 0:00:57.7]} 23... Rxb2 {[%clk 0:01:53.3]} 0-1

[Event "*** Titled Tuesday 3|2 Blitz"]
[Site "Chess.com"]
[Date "2016.01.05"]
[Round "2"]
[White "Shankland"]
[Black "yurisolo"]
[Result "0-1"]
[WhiteElo "2493"]
[BlackElo "2471"]
[TimeControl "180+2"]
[EndTime "11:18:27 PST"]
[Termination "yurisolo won by resignation"]

1. d4 {[%clk 0:03:01.9]} 1... Nf6 {[%clk 0:03:00.6]} 2. c4 {[%clk 0:03:02.7]}
2... c6 {[%clk 0:03:02]} 3. Nf3 {[%clk 0:03:03]} 3... d5 {[%clk 0:03:03.2]} 4.
Nc3 {[%clk 0:03:04.7]} 4... e6 {[%clk 0:03:04.5]} 5. Bg5 {[%clk 0:03:05.5]} 5...
dxc4 {[%clk 0:03:05]} 6. e4 {[%clk 0:03:05.5]} 6... b5 {[%clk 0:03:06.5]} 7. e5
{[%clk 0:03:07]} 7... h6 {[%clk 0:03:07.9]} 8. Bh4 {[%clk 0:03:08.7]} 8... g5
{[%clk 0:03:09.1]} 9. Nxg5 {[%clk 0:03:10.4]} 9... hxg5 {[%clk 0:03:10.7]} 10.
Bxg5 {[%clk 0:03:12]} 10... Nbd7 {[%clk 0:03:11.9]} 11. exf6 {[%clk 0:03:13]}
11... Bb7 {[%clk 0:03:13]} 12. g3 {[%clk 0:03:14.4]} 12... Qb6 {[%clk
0:03:14.2]} 13. Bg2 {[%clk 0:03:15.6]} 13... O-O-O {[%clk 0:03:15.3]} 14. O-O
{[%clk 0:03:16.9]} 14... c5 {[%clk 0:03:16.8]} 15. d5 {[%clk 0:03:18]} 15... b4
{[%clk 0:03:18.2]} 16. Ne2 {[%clk 0:03:18.4]} 16... Bxd5 {[%clk 0:02:58.9]} 17.
Bxd5 {[%clk 0:02:42.4]} 17... Ne5 {[%clk 0:02:59.2]} 18. Nf4 {[%clk 0:02:43.9]}
18... exd5 {[%clk 0:02:59.3]} 19. Re1 {[%clk 0:02:45.6]} 19... Qd6 {[%clk
0:02:43.8]} 20. Qe2 {[%clk 0:02:42.2]} 20... Nc6 {[%clk 0:02:38.6]} 21. a3
{[%clk 0:02:18.1]} 21... b3 {[%clk 0:02:34.3]} 22. Kg2 {[%clk 0:01:48.1]} 22...
Bh6 {[%clk 0:02:32.6]} 23. Qh5 {[%clk 0:01:40.4]} 23... Bxg5 {[%clk 0:02:13.8]}
24. Qxg5 {[%clk 0:01:41.5]} 24... Nd4 {[%clk 0:02:10.6]} 25. h4 {[%clk
0:01:27.5]} 25... Rhg8 {[%clk 0:01:40.8]} 26. Qh5 {[%clk 0:01:23.8]} 26... Qxf4
{[%clk 0:01:36.1]} 27. Qxf7 {[%clk 0:01:19.4]} 27... Qf3+ {[%clk 0:01:32.7]} 0-1

[Event "*** Titled Tuesday 3|2 Blitz"]
[Site "Chess.com"]
[Date "2016.01.05"]
[Round "2"]
[White "alex_zapata"]
[Black "Jahonas"]
[Result "0-1"]
[WhiteElo "2215"]
[BlackElo "2117"]
[TimeControl "180+2"]
[EndTime "11:18:44 PST"]
[Termination "Jahonas won by resignation"]

1. e4 {[%clk 0:03:01.9]} 1... c6 {[%clk 0:03:00.5]} 2. d4 {[%clk 0:03:02.1]}
2... d5 {[%clk 0:03:01.3]} 3. Nc3 {[%clk 0:03:03.3]} 3... dxe4 {[%clk 0:03:02]}
4. Nxe4 {[%clk 0:03:05.2]} 4... Nf6 {[%clk 0:03:03.1]} 5. Ng5 {[%clk 0:03:04.5]}
5... h6 {[%clk 0:02:59.6]} 6. N5f3 {[%clk 0:03:04.3]} 6... Bg4 {[%clk
0:02:58.5]} 7. h3 {[%clk 0:03:04.4]} 7... Bh5 {[%clk 0:02:56.2]} 8. Bd3 {[%clk
0:03:04.8]} 8... Bxf3 {[%clk 0:02:46]} 9. Nxf3 {[%clk 0:03:06.7]} 9... e6 {[%clk
0:02:46.6]} 10. Qe2 {[%clk 0:03:07]} 10... Nbd7 {[%clk 0:02:46.3]} 11. Bf4
{[%clk 0:03:05.6]} 11... Qb6 {[%clk 0:02:40.1]} 12. O-O-O {[%clk 0:03:05.5]}
12... Be7 {[%clk 0:02:39]} 13. g4 {[%clk 0:03:02.1]} 13... Nd5 {[%clk
0:02:38.4]} 14. Bd2 {[%clk 0:03:01.9]} 14... a5 {[%clk 0:02:32.7]} 15. h4 {[%clk
0:02:54.6]} 15... O-O-O {[%clk 0:02:31.7]} 16. g5 {[%clk 0:02:47.4]} 16... hxg5
{[%clk 0:02:29.8]} 17. hxg5 {[%clk 0:02:48.1]} 17... g6 {[%clk 0:02:28.4]} 18.
a3 {[%clk 0:02:43.9]} 18... Bd6 {[%clk 0:02:12.9]} 19. Ne5 {[%clk 0:02:38.6]}
19... Nxe5 {[%clk 0:01:54.8]} 20. dxe5 {[%clk 0:02:40.5]} 20... Bc5 {[%clk
0:01:48.3]} 21. c4 {[%clk 0:02:39.2]} 21... Ne7 {[%clk 0:01:45.5]} 22. f4 {[%clk
0:02:29.2]} 22... Bd4 {[%clk 0:01:41.6]} 23. b4 {[%clk 0:01:55.6]} 23... axb4
{[%clk 0:01:42]} 24. axb4 {[%clk 0:01:39.6]} 24... Qa7 {[%clk 0:01:41.6]} 25.
Rxh8 {[%clk 0:01:00.1]} 25... Qa3+ {[%clk 0:01:36.2]} 0-1

[Event "*** Titled Tuesday 3|2 Blitz"]
[Site "Chess.com"]
[Date "2016.01.05"]
[Round "2"]
[White "BIG_Pirate"]
[Black "Haridaskesavan"]
[Result "0-1"]
[WhiteElo "2211"]
[BlackElo "2111"]
[TimeControl "180+2"]
[EndTime "11:19:02 PST"]
[Termination "Haridaskesavan won by resignation"]

1. e4 {[%clk 0:03:01.9]} 1... e5 {[%clk 0:03:00.5]} 2. Nf3 {[%clk 0:03:02.1]}
2... Nc6 {[%clk 0:03:01.8]} 3. Bb5 {[%clk 0:03:03]} 3... a6 {[%clk 0:03:02.3]}
4. Ba4 {[%clk 0:03:03.7]} 4... d6 {[%clk 0:03:03.6]} 5. O-O {[%clk 0:02:57.2]}
5... Ne7 {[%clk 0:03:01.7]} 6. c3 {[%clk 0:02:58.5]} 6... g6 {[%clk 0:02:59]} 7.
d4 {[%clk 0:02:59.5]} 7... Bd7 {[%clk 0:02:58.9]} 8. Be3 {[%clk 0:02:53.5]} 8...
Bg7 {[%clk 0:02:59.6]} 9. Na3 {[%clk 0:02:50.3]} 9... O-O {[%clk 0:02:59.2]} 10.
Qd2 {[%clk 0:02:51.4]} 10... Nxd4 {[%clk 0:02:38.6]} 11. cxd4 {[%clk 0:02:36.5]}
11... Bxa4 {[%clk 0:02:39.5]} 12. dxe5 {[%clk 0:01:34.6]} 12... dxe5 {[%clk
0:02:38.8]} 13. Qb4 {[%clk 0:01:35]} 13... Bd7 {[%clk 0:02:16.9]} 14. Bc5 {[%clk
0:01:04.9]} 14... Re8 {[%clk 0:02:10]} 15. Rfd1 {[%clk 0:01:02.8]} 15... b6
{[%clk 0:02:06.8]} 16. Be3 {[%clk 0:00:58.6]} 16... Nc6 {[%clk 0:02:01.6]} 17.
Qc3 {[%clk 0:00:51.9]} 17... Qe7 {[%clk 0:02:01.2]} 18. Rac1 {[%clk 0:00:38.3]}
18... Rad8 {[%clk 0:01:19.9]} 19. Rxd7 {[%clk 0:00:35.7]} 19... Qxd7 {[%clk
0:01:20.5]} 20. Qxc6 {[%clk 0:00:37.3]} 20... Qxc6 {[%clk 0:01:21.4]} 0-1

[Event "*** Titled Tuesday 3|2 Blitz"]
[Site "Chess.com"]
[Date "2016.01.05"]
[Round "2"]
[White "Carolina-moon"]
[Black "AndrewMcStone"]
[Result "0-1"]
[WhiteElo "2008"]
[BlackElo "1977"]
[TimeControl "180+2"]
[EndTime "11:19:05 PST"]
[Termination "AndrewMcStone won by resignation"]

1. e4 {[%clk 0:03:01.9]} 1... d5 {[%clk 0:03:00.6]} 2. Nc3 {[%clk 0:03:01.8]}
2... d4 {[%clk 0:02:52.2]} 3. Nce2 {[%clk 0:03:02.4]} 3... c5 {[%clk 0:02:51.6]}
4. f4 {[%clk 0:03:02.9]} 4... Nc6 {[%clk 0:02:47.8]} 5. Nf3 {[%clk 0:03:03.7]}
5... Bg4 {[%clk 0:02:45.6]} 6. Ng3 {[%clk 0:03:03.9]} 6... e5 {[%clk 0:02:41.4]}
7. fxe5 {[%clk 0:02:58.3]} 7... Nge7 {[%clk 0:02:25.1]} 8. h3 {[%clk 0:02:54.1]}
8... Bxf3 {[%clk 0:02:24.7]} 9. Qxf3 {[%clk 0:02:55.6]} 9... Ng6 {[%clk
0:02:26.1]} 10. e6 {[%clk 0:02:52.2]} 10... fxe6 {[%clk 0:02:21.9]} 11. Bb5
{[%clk 0:02:48.7]} 11... Qc7 {[%clk 0:02:04.3]} 12. O-O {[%clk 0:02:43.6]} 12...
Bd6 {[%clk 0:02:04.9]} 13. Bxc6+ {[%clk 0:02:32.7]} 13... bxc6 {[%clk
0:02:06.8]} 14. Nh5 {[%clk 0:02:25.3]} 14... O-O-O {[%clk 0:02:01]} 15. d3
{[%clk 0:02:18.3]} 15... Rdf8 {[%clk 0:01:58.8]} 16. Qe2 {[%clk 0:02:10.3]}
16... Rxf1+ {[%clk 0:01:57]} 17. Qxf1 {[%clk 0:02:08.9]} 17... Rf8 {[%clk
0:01:58.9]} 18. Qe2 {[%clk 0:02:07.8]} 18... Bh2+ {[%clk 0:01:51.7]} 19. Kh1
{[%clk 0:02:06.7]} 19... Bg3 {[%clk 0:01:41.5]} 20. Nxg3 {[%clk 0:01:19.8]}
20... Qxg3 {[%clk 0:01:40.3]} 21. Bd2 {[%clk 0:01:16.9]} 21... Rf2 {[%clk
0:01:28.7]} 22. Qxf2 {[%clk 0:00:48]} 22... Qxf2 {[%clk 0:01:28.9]} 23. Bg5
{[%clk 0:00:41.8]} 23... h6 {[%clk 0:01:23.8]} 0-1

[Event "*** Titled Tuesday 3|2 Blitz"]
[Site "Chess.com"]
[Date "2016.01.05"]
[Round "2"]
[White "swayamsm"]
[Black "Gabrielian_Artur"]
[Result "1-0"]
[WhiteElo "2551"]
[BlackElo "2444"]
[TimeControl "180+2"]
[EndTime "11:19:08 PST"]
[Termination "swayamsm won by resignation"]

1. d4 {[%clk 0:03:01.9]} 1... Nf6 {[%clk 0:02:58.6]} 2. c4 {[%clk 0:03:03.3]}
2... g6 {[%clk 0:02:59.2]} 3. Nc3 {[%clk 0:03:04]} 3... d5 {[%clk 0:03:00.5]} 4.
Nf3 {[%clk 0:02:59.9]} 4... Bg7 {[%clk 0:03:01.4]} 5. Bf4 {[%clk 0:03:01.6]}
5... O-O {[%clk 0:03:01.9]} 6. e3 {[%clk 0:03:02.8]} 6... c5 {[%clk 0:03:02.4]}
7. dxc5 {[%clk 0:03:03.5]} 7... dxc4 {[%clk 0:03:03.3]} 8. Bxc4 {[%clk
0:02:33.8]} 8... Qa5 {[%clk 0:03:01.7]} 9. Rc1 {[%clk 0:02:31.9]} 9... Qxc5
{[%clk 0:03:01.3]} 10. Bb3 {[%clk 0:02:33.1]} 10... Qa5 {[%clk 0:03:02.4]} 11.
O-O {[%clk 0:02:30]} 11... Nc6 {[%clk 0:03:00.9]} 12. h3 {[%clk 0:02:29.2]}
12... Bf5 {[%clk 0:02:59.8]} 13. Qe2 {[%clk 0:02:30.5]} 13... Ne4 {[%clk
0:02:53.3]} 14. Nd5 {[%clk 0:02:31.6]} 14... e5 {[%clk 0:02:53.9]} 15. Rxc6
{[%clk 0:02:32.6]} 15... bxc6 {[%clk 0:02:53]} 16. Ne7+ {[%clk 0:02:34]} 16...
Kh8 {[%clk 0:02:54.3]} 17. Nxc6 {[%clk 0:02:35.9]} 17... Qc5 {[%clk 0:02:54.1]}
18. Ncxe5 {[%clk 0:02:28.9]} 18... Qe7 {[%clk 0:02:41.1]} 19. Qc4 {[%clk
0:02:13.3]} 19... Nd6 {[%clk 0:02:21.4]} 20. Qb4 {[%clk 0:02:06]} 20... a5
{[%clk 0:01:55.1]} 21. Qa3 {[%clk 0:02:03.4]} 21... a4 {[%clk 0:01:43]} 22. Bd5
{[%clk 0:02:00.8]} 22... Ra6 {[%clk 0:01:43.2]} 23. Nc6 {[%clk 0:01:57.9]} 23...
Qd7 {[%clk 0:00:34.7]} 24. Bxd6 {[%clk 0:01:55.2]} 24... Re8 {[%clk 0:00:33.7]}
25. Nfe5 {[%clk 0:01:52.1]} 1-0

[Event "*** Titled Tuesday 3|2 Blitz"]
[Site "Chess.com"]
[Date "2016.01.05"]
[Round "2"]
[White "MateusViageiro"]
[Black "StellarChessPro"]
[Result "0-1"]
[WhiteElo "2242"]
[BlackElo "2209"]
[TimeControl "180+2"]
[EndTime "11:19:47 PST"]
[Termination "StellarChessPro won by resignation"]

1. e4 {[%clk 0:03:01.9]} 1... c6 {[%clk 0:03:00.5]} 2. d4 {[%clk 0:03:01.8]}
2... d5 {[%clk 0:03:01.6]} 3. Nc3 {[%clk 0:03:02.8]} 3... dxe4 {[%clk
0:03:02.6]} 4. Nxe4 {[%clk 0:03:02.8]} 4... Nf6 {[%clk 0:03:04.5]} 5. Nxf6+
{[%clk 0:03:03.5]} 5... exf6 {[%clk 0:03:06.4]} 6. c3 {[%clk 0:03:04.8]} 6...
Bd6 {[%clk 0:03:06.9]} 7. Bd3 {[%clk 0:03:05.1]} 7... O-O {[%clk 0:03:07.8]} 8.
Qc2 {[%clk 0:03:06.1]} 8... Re8+ {[%clk 0:03:08.9]} 9. Ne2 {[%clk 0:03:07]} 9...
g6 {[%clk 0:03:10.2]} 10. h4 {[%clk 0:03:07.5]} 10... f5 {[%clk 0:03:07.2]} 11.
h5 {[%clk 0:03:08.3]} 11... Nd7 {[%clk 0:03:04.7]} 12. Bd2 {[%clk 0:03:02.6]}
12... Nf6 {[%clk 0:03:05.2]} 13. hxg6 {[%clk 0:02:58.3]} 13... fxg6 {[%clk
0:03:04.1]} 14. O-O-O {[%clk 0:02:56.5]} 14... Be6 {[%clk 0:03:04.9]} 15. Kb1
{[%clk 0:02:57]} 15... Qa5 {[%clk 0:03:05.2]} 16. c4 {[%clk 0:02:54.5]} 16...
Bb4 {[%clk 0:03:04.3]} 17. Bg5 {[%clk 0:02:51.2]} 17... Ng4 {[%clk 0:02:56.8]}
18. Nf4 {[%clk 0:02:48]} 18... Bf7 {[%clk 0:02:42.8]} 19. Rh4 {[%clk 0:02:17.4]}
19... b5 {[%clk 0:02:34.5]} 20. Rdh1 {[%clk 0:01:56.2]} 20... h5 {[%clk
0:02:32.4]} 21. Nxh5 {[%clk 0:01:53.1]} 21... gxh5 {[%clk 0:02:32.3]} 22. Bxf5
{[%clk 0:01:53.9]} 22... bxc4 {[%clk 0:02:08.2]} 23. Rxg4 {[%clk 0:01:44.7]}
23... hxg4 {[%clk 0:01:54.3]} 24. Bh7+ {[%clk 0:01:31.2]} 24... Kf8 {[%clk
0:01:52.1]} 25. Bh6+ {[%clk 0:01:31.3]} 25... Ke7 {[%clk 0:01:53]} 26. Qe4+
{[%clk 0:01:30.3]} 26... Kd7 {[%clk 0:01:49]} 27. Qxg4+ {[%clk 0:01:20.7]} 27...
Be6 {[%clk 0:01:46.3]} 28. Qf3 {[%clk 0:01:10.4]} 28... c3 {[%clk 0:01:45]} 29.
Be4 {[%clk 0:01:04.8]} 29... Qxa2+ {[%clk 0:01:44]} 30. Kc2 {[%clk 0:01:03.4]}
30... Qb3+ {[%clk 0:01:35.4]} 31. Kc1 {[%clk 0:01:00.4]} 31... Qxb2+ {[%clk
0:01:27.8]} 32. Kd1 {[%clk 0:00:59.2]} 32... Bb3+ {[%clk 0:01:28.7]} 33. Ke1
{[%clk 0:00:56.6]} 33... Rxe4+ {[%clk 0:01:25.6]} 34. Qxe4 {[%clk 0:00:53.8]}
34... Re8 {[%clk 0:01:26.5]} 0-1